bitfinex/quotes_BTCUSD_20240703
["timestamp","ask_amount","ask_price","bid_price","bid_amount"]
[1720035354525,0.0001,59997.0,59996.0,2.2742408]
[1720035354754,0.0001,59997.0,59996.0,2.2732408]
[1720035354890,0.0001,59997.0,59996.0,2.2852408]
[1720035355088,0.0001,59997.0,59996.0,2.2752408]
[1720035355313,0.0001,59997.0,59996.0,2.3196208]
[1720035355522,0.0001,59997.0,59996.0,2.3076508]
[1720035355746,0.0001,59997.0,59996.0,2.2772408]
[1720035355944,0.0001,59997.0,59996.0,2.2912408]
[1720035356411,0.0001,59997.0,59996.0,2.2772408]
[1720035356633,0.03022691,60011.0,59996.0,2.2772408]
[1720035356634,0.48093494,60011.0,60010.0,0.333277]
[1720035356935,0.48093494,60011.0,60010.0,0.6602138]
[1720035357055,0.08015582,60014.0,60010.0,0.4935758]
[1720035357251,0.08015582,60014.0,60011.0,0.1602988]
[1720035357453,0.08015582,60014.0,60012.0,0.166631]
[1720035358490,0.166605,60022.0,60013.0,0.16663]
[1720035359508,0.166605,60022.0,60013.0,0.17263]
[1720035359749,0.166605,60022.0,60013.0,0.17763]
[1720035360169,0.166605,60022.0,60013.0,0.011]
[1720035360341,0.597797,60025.0,60013.0,0.011]
[1720035360342,0.166608,60021.0,60013.0,0.011]
[1720035360744,0.166608,60021.0,60013.0,0.005]
[1720035360958,0.166608,60021.0,60012.0,0.166633]
[1720035361287,0.166608,60021.0,60013.0,0.011]
[1720035361454,0.24676682,60020.0,60013.0,0.011]
[1720035361611,0.08015582,60020.0,60011.0,0.1602988]
[1720035361859,0.08015582,60020.0,60013.0,0.011]
[1720035362301,0.08015582,60020.0,60013.0,0.006]
[1720035362927,0.24676882,60020.0,60013.0,0.013]
[1720035363380,0.999765,60014.0,60013.0,0.013]
[1720035363579,1.81204371,60014.0,60013.0,0.013]
[1720035363993,2.14530799,60014.0,60013.0,0.013]
[1720035364215,2.17386873,60014.0,60013.0,0.013]
[1720035364425,2.24025293,60014.0,60013.0,0.006]
[1720035364635,2.43265293,60014.0,60013.0,0.006]
[1720035364832,2.37126873,60014.0,60013.0,0.0069]
[1720035365066,2.15030774,60014.0,60013.0,0.0068]
[1720035365238,0.166659,60003.0,59999.0,0.247423]
[1720035365457,0.3203,60004.0,59999.0,0.247423]
[1720035365641,0.36289149,60003.0,59999.0,0.247423]
[1720035365861,0.333319,60003.0,59999.0,0.247423]
[1720035366351,0.333319,60003.0,59999.0,0.247323]
[1720035366660,0.166661,60002.0,59999.0,0.247323]
[1720035367449,0.166661,60002.0,59999.0,0.247223]
[1720035367634,0.166664,60001.0,59999.0,0.247223]
[1720035369417,0.166664,60001.0,59999.0,0.248223]
[1720035369593,0.166664,60001.0,59999.0,0.003]
[1720035369800,0.166664,60001.0,59999.0,0.005]
[1720035370005,0.166666,60000.0,59999.0,0.005]
[1720035370209,0.499999,60000.0,59999.0,0.005]
[1720035370898,0.499999,60000.0,59999.0,0.002]
[1720035371298,0.499999,60000.0,59996.0,0.00093]
[1720035371299,0.16667,59999.0,59996.0,0.00093]
[1720035371507,0.16667,59999.0,59996.0,0.1612288]
[1720035374053,0.500085,60002.0,59996.0,0.1672288]
[1720035374253,0.333329,60001.0,59996.0,0.1722288]
[1720035374494,0.166667,60000.0,59996.0,0.1722288]
[1720035374638,2.34218082,59997.0,59996.0,0.01193]
[1720035374845,2.34218082,59997.0,59973.0,0.0060618]
[1720035374846,0.166717,59982.0,59973.0,0.0060618]
[1720035375142,0.06,59995.0,59975.0,0.2623]
[1720035375143,0.166725,59979.0,59975.0,0.2623]
[1720035375951,0.333447,59980.0,59975.0,0.2623]
[1720035375952,0.166728,59978.0,59975.0,0.2623]
[1720035376373,0.166722,59980.0,59975.0,0.2623]
[1720035376596,0.004,59982.0,59975.0,0.4225988]
[1720035376793,0.166722,59980.0,59975.0,0.4225988]
[1720035376993,0.166723,59980.0,59975.0,0.4225988]
[1720035377683,0.166728,59978.0,59975.0,0.2623]
[1720035378905,0.166728,59978.0,59975.0,0.2633]
[1720035379363,0.166728,59978.0,59975.0,0.2643]
[1720035380280,0.06,59991.0,59975.0,0.002]
[1720035380281,0.2442,59980.0,59975.0,0.002]
[1720035380467,0.166738,59974.0,59973.0,0.01943451]
[1720035380665,1.164492,59974.0,59973.0,0.01943451]
[1720035380966,1.164492,59974.0,59973.0,0.0060618]
[1720035381876,1.165492,59974.0,59973.0,0.0060618]
[1720035382022,1.164492,59974.0,59973.0,0.0060618]
[1720035382900,1.164392,59974.0,59973.0,0.0060618]
[1720035383102,1.165392,59974.0,59973.0,0.0060618]
[1720035384350,1.498869,59974.0,59973.0,0.0060618]
[1720035384553,1.165392,59974.0,59973.0,0.0060618]
[1720035385999,1.165392,59974.0,59973.0,0.0061618]
[1720035386250,0.001,59974.0,59973.0,0.0061618]
[1720035387259,0.0011,59974.0,59973.0,0.0061618]
[1720035388516,0.0012,59974.0,59973.0,0.0061618]
[1720035389857,0.0002,59974.0,59973.0,0.0061618]
[1720035390737,0.0002,59974.0,59973.0,0.0091618]
[1720035391233,0.0002,59974.0,59973.0,0.0081618]
[1720035391602,0.0002,59974.0,59973.0,0.0101618]
[1720035391849,0.0002,59974.0,59973.0,0.0131618]
[1720035392992,0.0002,59974.0,59973.0,0.5818618]
[1720035394042,0.0002,59974.0,59973.0,0.2784618]
[1720035395497,0.0002,59974.0,59973.0,0.2792918]
[1720035395675,0.00111301,59974.0,59973.0,0.2792918]
[1720035395880,0.00111301,59974.0,59973.0,1.8031146]
[1720035396213,0.48093494,59993.0,59988.0,0.3034]
[1720035396426,0.48093494,59993.0,59992.0,0.833442]
[1720035396619,0.3002,60004.0,59996.0,0.166677]
[1720035396826,0.3002,60004.0,59997.0,0.166673]
[1720035397243,0.3002,60004.0,59996.0,0.333355]
[1720035397413,0.3002,60004.0,59996.0,0.166677]
[1720035397820,0.3002,60004.0,59997.0,0.166674]
[1720035398242,0.3002,60004.0,59995.0,0.333356]
[1720035398434,0.333422,59984.0,59983.0,0.0164]
[1720035398609,0.66565582,59984.0,59973.0,0.0069918]
[1720035398810,0.16673,59978.0,59973.0,0.0069918]
[1720035399058,0.166733,59976.0,59973.0,0.0069918]
[1720035399259,0.72565582,59984.0,59973.0,0.0069918]
[1720035399260,0.16673,59978.0,59973.0,0.0069918]
[1720035399632,0.16673,59978.0,59973.0,0.0068918]
[1720035399887,0.16673,59978.0,59973.0,0.0078918]
[1720035400046,0.16663,59978.0,59973.0,0.0078918]
[1720035400241,0.16663,59978.0,59973.0,0.0068918]
[1720035400534,0.16663,59978.0,59973.0,0.0078918]
[1720035400535,0.0001,59974.0,59973.0,0.0078918]
[1720035400753,0.0001,59974.0,59973.0,0.0088918]
[1720035401132,0.0001,59974.0,59973.0,0.0078918]
[1720035401571,0.0001,59974.0,59973.0,0.0088918]
[1720035401933,0.0001,59974.0,59973.0,0.0078918]
[1720035402333,0.0001,59974.0,59973.0,0.0068918]
[1720035402564,0.0021,59974.0,59973.0,0.0068918]
[1720035402770,0.0061,59974.0,59973.0,0.0068918]
[1720035403703,0.004,59974.0,59973.0,0.0068918]
[1720035404229,0.006,59974.0,59973.0,0.0068918]
[1720035404403,0.004,59974.0,59973.0,0.0068918]
[1720035404621,0.525827,59983.0,59973.0,0.0068918]
[1720035404870,0.002,59974.0,59973.0,0.0068918]
[1720035405074,0.006,59974.0,59973.0,0.0068918]
[1720035405218,0.004,59974.0,59973.0,0.0068918]
[1720035405564,0.008,59974.0,59973.0,0.0068918]
[1720035405791,0.01,59974.0,59973.0,0.0068918]
[1720035405980,0.002,59974.0,59973.0,0.0068918]
[1720035406193,0.006,59974.0,59973.0,0.0068918]
[1720035406814,0.0081,59974.0,59973.0,0.0068918]
[1720035406975,0.008,59974.0,59973.0,0.0068918]
[1720035407172,0.01,59974.0,59973.0,0.0068918]
[1720035407528,0.008,59974.0,59973.0,0.0068918]
[1720035407857,0.009,59974.0,59973.0,0.0068918]
[1720035408351,0.008,59974.0,59973.0,0.2663918]
[1720035408790,0.009,59974.0,59973.0,0.2663918]
[1720035408997,0.0011,59974.0,59973.0,0.2663918]
[1720035410440,0.0001,59974.0,59973.0,0.2663918]
[1720035410924,0.0011,59974.0,59973.0,0.2663918]
[1720035411128,0.001,59974.0,59973.0,0.2663918]
[1720035411260,0.166725,59979.0,59973.0,0.2663918]
[1720035411671,0.166625,59979.0,59973.0,0.2673918]
[1720035412052,0.166625,59979.0,59973.0,0.2663918]
[1720035412538,0.166728,59978.0,59973.0,0.2663918]
[1720035412742,0.170726,59979.0,59973.0,0.2683918]
[1720035412928,0.170726,59979.0,59973.0,0.2663918]
[1720035413712,0.166726,59979.0,59973.0,0.2663918]
[1720035414113,0.004,59979.0,59973.0,0.3262918]
[1720035414323,0.004,59979.0,59978.0,0.166727]
[1720035414679,0.735197,59989.0,59979.0,0.166724]
[1720035414850,0.735197,59989.0,59978.0,0.333455]
[1720035414851,0.316,59989.0,59981.0,0.0599]
[1720035414994,0.48093494,59992.0,59980.0,0.1602988]
[1720035415199,0.166694,59990.0,59980.0,0.1602988]
[1720035415409,0.166694,59990.0,59980.0,0.3270188]
[1720035415612,0.595874,59993.0,59980.0,0.3270188]
[1720035415613,0.166693,59991.0,59980.0,0.4937398]
[1720035415818,0.166693,59991.0,59980.0,0.6604598]
[1720035416283,0.166693,59991.0,59981.0,0.166718]
[1720035416677,0.166693,59991.0,59978.0,0.003]
[1720035416678,0.1924,59982.0,59978.0,0.003]
[1720035416879,0.08015582,59980.0,59973.0,0.0068918]
[1720035417132,0.33345,59979.0,59973.0,0.0068918]
[1720035417337,0.166728,59978.0,59973.0,0.0068918]
[1720035417462,0.166731,59977.0,59973.0,0.0068918]
[1720035417867,0.08015582,59980.0,59973.0,0.0068918]
[1720035418112,0.58037082,59974.0,59973.0,0.0068918]
[1720035418284,0.91384782,59974.0,59973.0,0.0068918]
[1720035418488,0.86184682,59974.0,59973.0,0.0068918]
[1720035419314,0.86184682,59974.0,59973.0,0.0159918]
[1720035419517,0.86184682,59974.0,59973.0,0.0069918]
[1720035419718,0.86184682,59974.0,59973.0,0.0079918]
[1720035419925,0.86207061,59974.0,59973.0,0.0079918]
[1720035420130,0.92207061,59974.0,59973.0,0.0069918]
[1720035420344,0.92207061,59974.0,59973.0,0.0079918]
[1720035420551,0.87207061,59974.0,59973.0,0.0089918]
[1720035421072,0.86207061,59974.0,59973.0,0.0079918]
[1720035421350,0.87107061,59974.0,59973.0,0.0089918]
[1720035421755,0.86207061,59974.0,59973.0,0.0069918]
[1720035421958,0.86207061,59974.0,59973.0,0.0079918]
[1720035422188,0.86207061,59974.0,59973.0,0.0089918]
[1720035422189,0.86952269,59974.0,59973.0,0.0089918]
[1720035422334,0.86952269,59974.0,59973.0,0.0079918]
[1720035422540,0.86952269,59974.0,59973.0,0.0089918]
[1720035422740,1.26299969,59974.0,59973.0,0.0089918]
[1720035422947,1.99749849,59974.0,59973.0,0.0089918]
[1720035423354,1.92849849,59974.0,59973.0,0.0079918]
[1720035423690,1.92849849,59974.0,59973.0,0.0089918]
[1720035423691,1.93749849,59974.0,59973.0,0.0089918]
[1720035424098,1.44372269,59974.0,59973.0,0.0089918]
[1720035424635,0.84394569,59974.0,59973.0,0.0089918]
[1720035424976,0.53604569,59974.0,59973.0,0.0089918]
[1720035426525,0.86952269,59974.0,59973.0,0.0089918]
[1720035428229,0.842692,59974.0,59973.0,0.0089918]
[1720035428383,0.86987826,59974.0,59973.0,0.0089918]
[1720035429460,1.26335526,59974.0,59973.0,0.0089918]
[1720035431284,1.42365406,59974.0,59973.0,0.0089918]
[1720035431477,1.42230191,59974.0,59973.0,0.0089918]
[1720035431904,1.3964678,59974.0,59973.0,0.0089918]
[1720035432106,1.4223019,59974.0,59973.0,0.0089918]
[1720035433006,1.4223019,59974.0,59973.0,0.0088918]
[1720035433205,1.3623019,59974.0,59973.0,0.0088918]
[1720035434458,0.842692,59974.0,59973.0,0.0088918]
[1720035434661,0.86913986,59974.0,59973.0,0.0088918]
[1720035434906,1.20261686,59974.0,59973.0,0.0088918]
[1720035437646,1.2029484,59974.0,59973.0,0.0088918]
[1720035440854,1.176169,59974.0,59973.0,0.0088918]
[1720035441080,1.20331363,59974.0,59973.0,0.0088918]
[1720035441284,0.86983663,59974.0,59973.0,0.0088918]
[1720035442441,0.53635963,59974.0,59973.0,0.0088918]
[1720035442710,0.20288263,59974.0,59973.0,0.0088918]
[1720035444081,0.009,59974.0,59973.0,0.0088918]
[1720035444197,0.03562818,59974.0,59973.0,0.0088918]
[1720035444395,0.009,59974.0,59973.0,0.0088918]
[1720035444623,0.0357998,59974.0,59973.0,0.0088918]
[1720035447093,0.009,59974.0,59973.0,0.0088918]
[1720035447267,0.03573602,59974.0,59973.0,0.0088918]
[1720035447462,0.03573594,59974.0,59973.0,0.0088918]
[1720035449628,0.009,59974.0,59973.0,0.0088918]
[1720035450663,0.009,59974.0,59973.0,0.1756328]
[1720035451065,0.00111301,59979.0,59973.0,0.1746328]
[1720035451278,0.01671626,59978.0,59973.0,0.1786328]
[1720035451484,0.01671626,59978.0,59973.0,0.1836328]
[1720035451639,0.01671626,59978.0,59973.0,0.1786328]
[1720035452232,0.01671626,59978.0,59974.0,0.166738]
[1720035452647,0.01671626,59978.0,59975.0,0.2506]
[1720035453050,0.00111301,59979.0,59975.0,0.2506]
[1720035453900,0.01718781,59978.0,59975.0,0.2536]
[1720035454299,0.00111301,59979.0,59975.0,0.2506]
[1720035454709,0.00111301,59979.0,59976.0,0.166732]
[1720035454925,0.00111301,59979.0,59978.0,0.0005]
[1720035456097,0.00111301,59979.0,59978.0,1.84240088]
[1720035456298,0.00111301,59979.0,59978.0,1.92530088]
[1720035456664,0.00111301,59979.0,59978.0,2.17240088]
[1720035456809,0.00111301,59979.0,59978.0,2.20581088]
[1720035457016,0.00111301,59979.0,59978.0,2.2049008]
[1720035457592,0.00111301,59979.0,59978.0,2.2139008]
[1720035457593,0.00211301,59979.0,59978.0,2.2139008]
[1720035457995,0.00111301,59979.0,59978.0,2.2049008]
[1720035458195,0.00111301,59979.0,59978.0,2.2059008]
[1720035458560,0.00111301,59979.0,59978.0,2.8523558]
[1720035458561,0.00211301,59979.0,59978.0,2.8523558]
[1720035458838,0.00211301,59979.0,59978.0,2.8663558]
[1720035459650,0.00211301,59979.0,59978.0,2.8523558]
[1720035459978,0.00111301,59979.0,59978.0,2.9523558]
[1720035460096,0.00211301,59979.0,59978.0,2.9663558]
[1720035460518,0.00211301,59979.0,59978.0,2.7739558]
[1720035460718,0.00211301,59979.0,59978.0,2.9663558]
[1720035461873,0.00211301,59979.0,59978.0,2.6663558]
[1720035462752,0.00211301,59979.0,59978.0,2.9663558]
[1720035462951,0.4786233,59991.0,59990.0,0.500082]
[1720035463377,0.12329631,59993.0,59992.0,0.166688]
[1720035463581,0.12329631,59993.0,59989.0,0.333389]
[1720035463780,0.12329631,59993.0,59986.0,0.166703]
[1720035463781,0.08015582,59990.0,59986.0,0.166703]
[1720035463988,0.08015582,59990.0,59987.0,0.1667]
[1720035464188,0.08015582,59990.0,59988.0,0.166699]
[1720035465802,0.12329631,59993.0,59992.0,0.166688]
[1720035465983,0.12329631,59993.0,59990.0,0.2494]
[1720035466182,0.12329631,59993.0,59992.0,0.166688]
[1720035466403,0.12329631,59993.0,59992.0,0.500065]
[1720035467125,0.12329631,59993.0,59992.0,0.499965]
[1720035467444,0.12329631,59993.0,59992.0,0.503965]
[1720035467893,0.12329631,59993.0,59992.0,0.837342]
[1720035468071,0.12329631,59993.0,59992.0,0.9976408]
[1720035468245,0.3079,60006.0,59998.0,0.166671]
[1720035468645,0.3079,60006.0,59996.0,0.333351]
[1720035468646,0.3079,60006.0,59999.0,0.166669]
[1720035469031,0.3079,60006.0,60000.0,0.166666]
[1720035469291,0.166638,60011.0,60001.0,0.166663]
[1720035469481,0.1,60010.0,60001.0,0.166663]
[1720035469884,0.306,60013.0,60003.0,0.166657]
[1720035470134,0.009,60006.0,60003.0,0.166657]
[1720035470539,0.306,60013.0,60003.0,0.333212]
[1720035470781,0.009,60010.0,60006.0,0.166648]
[1720035471336,0.306,60013.0,60006.0,0.166548]
[1720035472805,0.306,60013.0,60006.0,0.167548]
[1720035473019,0.306,60013.0,60006.0,0.166548]
[1720035473571,0.004,60010.0,60006.0,0.166548]
[1720035473810,0.306,60013.0,60006.0,0.166548]
[1720035474123,0.31,60013.0,60005.0,0.166652]
[1720035474659,0.306,60013.0,60005.0,0.166652]
[1720035475066,0.3061,60013.0,60005.0,0.166652]
[1720035475864,0.3061,60013.0,60006.0,0.0001]
[1720035476510,0.3101,60013.0,60006.0,0.0001]
[1720035476724,0.47673,60013.0,60006.0,0.0001]
[1720035476946,0.47273,60013.0,60006.0,0.0001]
[1720035477269,0.47473,60013.0,60006.0,0.0001]
[1720035477743,0.47273,60013.0,60006.0,0.0001]
[1720035478092,0.47473,60013.0,60006.0,0.0001]
[1720035478914,0.47483,60013.0,60006.0,0.0001]
[1720035479313,0.47283,60013.0,60006.0,0.0001]
[1720035479708,0.47483,60013.0,60006.0,0.0001]
[1720035480108,0.47283,60013.0,60006.0,0.0001]
[1720035480309,0.47383,60013.0,60006.0,0.0001]
[1720035482649,0.166633,60012.0,60006.0,0.0001]
[1720035483892,0.639462,60013.0,60006.0,0.0001]
[1720035483893,0.166636,60011.0,60006.0,0.0001]
[1720035484304,0.166636,60011.0,60006.0,0.0011]
[1720035484739,0.166636,60011.0,60006.0,0.0001]
[1720035485277,0.639462,60013.0,60006.0,0.0001]
[1720035485278,0.166634,60012.0,60006.0,0.0001]
[1720035485675,0.166634,60012.0,60006.0,0.0011]
[1720035485876,0.166634,60012.0,60006.0,0.0001]
[1720035486123,0.166634,60012.0,60006.0,0.0031]
[1720035486296,0.166634,60012.0,60006.0,0.0061]
[1720035486499,0.166634,60012.0,60006.0,0.0031]
[1720035486699,0.3062,60013.0,60006.0,0.0031]
[1720035486900,0.3062,60013.0,60006.0,0.171749]
[1720035487282,0.3062,60013.0,60007.0,0.166647]
[1720035487472,0.3062,60013.0,60006.0,0.0051]
[1720035487809,0.0002,60013.0,60007.0,0.166646]
[1720035488241,0.412023,60016.0,60008.0,0.166644]
[1720035488720,0.166623,60016.0,60008.0,0.166644]
[1720035488874,0.41255582,60020.0,60009.0,0.333279]
[1720035489033,0.41255582,60020.0,60011.0,0.166635]
[1720035489034,0.166614,60019.0,60011.0,0.166635]
[1720035489408,0.41255582,60020.0,60011.0,0.166635]
[1720035489409,0.57916782,60020.0,60011.0,0.166635]
[1720035490193,0.00591301,60018.0,60010.0,0.166637]
[1720035490604,0.00091301,60018.0,60010.0,0.166637]
[1720035490814,0.00591301,60018.0,60010.0,0.166637]
[1720035491962,0.00091301,60013.0,60010.0,0.166637]
[1720035492822,0.00091301,60013.0,60010.0,0.167637]
[1720035494054,0.00091301,60013.0,60010.0,0.166637]
[1720035494262,0.00191301,60013.0,60011.0,0.166635]
[1720035495213,0.00201301,60013.0,60012.0,0.166633]
[1720035495602,0.00201301,60013.0,60011.0,0.166635]
[1720035495959,0.00201301,60013.0,60011.0,0.173635]
[1720035495960,0.00101301,60013.0,60011.0,0.173635]
[1720035496163,0.00201301,60013.0,60011.0,0.181635]
[1720035496368,0.00201301,60013.0,60012.0,0.166633]
[1720035496369,0.00211301,60013.0,60012.0,0.166633]
[1720035497195,0.00211301,60013.0,60012.0,0.173633]
[1720035498180,0.00211301,60013.0,60012.0,0.767099]
[1720035498824,0.00111301,60013.0,60012.0,0.767099]
[1720035500219,0.00211301,60013.0,60012.0,0.775099]
[1720035501591,0.00211301,60013.0,60012.0,1.9869298]
[1720035501817,0.00211301,60013.0,60012.0,1.9500298]
[1720035502858,0.00211301,60013.0,60012.0,2.0099298]
[1720035503021,0.00161301,60013.0,60012.0,2.0099298]
[1720035504769,0.00161301,60013.0,60012.0,0.181633]
[1720035505171,0.00161301,60013.0,60012.0,0.015]
[1720035505368,0.00161301,60013.0,60012.0,0.181633]
[1720035509083,0.00161301,60013.0,60012.0,0.514899]
[1720035509995,0.00161301,60013.0,60012.0,0.574799]
[1720035510196,0.00161301,60013.0,60012.0,0.908065]
[1720035510749,0.00161301,60013.0,60012.0,0.848165]
[1720035511933,0.00161301,60013.0,60012.0,0.908065]
[1720035514500,0.00161301,60013.0,60012.0,0.6751978]
[1720035516591,0.00161301,60013.0,60012.0,0.3419318]
[1720035521078,0.00161301,60013.0,60012.0,0.6751978]
[1720035521660,0.00161301,60013.0,60012.0,1.0683638]
[1720035521999,0.10382136,60020.0,60014.0,0.166625]
[1720035522209,0.01027638,60019.0,60014.0,0.166525]
[1720035522404,0.10382136,60020.0,60015.0,0.0769]
[1720035522405,0.01027493,60018.0,60015.0,0.0769]
[1720035522748,0.01027608,60017.0,60015.0,0.243524]
[1720035522950,0.10382136,60020.0,60015.0,0.243524]
[1720035523150,0.01027568,60019.0,60015.0,0.243524]
[1720035523382,0.10482136,60020.0,60015.0,0.243524]
[1720035523584,0.01027603,60018.0,60015.0,0.243524]
[1720035523712,0.10382136,60020.0,60015.0,0.243524]
[1720035523918,0.01027602,60019.0,60015.0,0.0799]
[1720035524457,0.08015582,60018.0,60015.0,0.003]
[1720035524672,0.01027602,60017.0,60015.0,0.003]
[1720035524874,0.01027602,60017.0,60015.0,0.004]
[1720035525172,0.01027602,60017.0,60015.0,0.003]
[1720035525373,0.01027602,60017.0,60012.0,0.3277608]
[1720035525681,0.01027569,60016.0,60012.0,0.3277608]
[1720035525881,0.01027569,60017.0,60012.0,0.3277608]
[1720035526186,0.01027569,60016.0,60015.0,0.002]
[1720035526389,0.01027569,60016.0,60015.0,0.005]
[1720035526572,0.08015582,60018.0,60015.0,0.005]
[1720035526573,0.01027569,60017.0,60015.0,0.005]
[1720035526776,0.08015582,60018.0,60015.0,0.005]
[1720035526777,0.01027569,60016.0,60015.0,0.005]
[1720035526984,0.01027569,60016.0,60015.0,0.002]
[1720035527186,0.01027569,60017.0,60015.0,0.002]
[1720035527528,0.01027569,60017.0,60012.0,0.1641288]
[1720035527728,0.01027569,60017.0,60012.0,0.1661288]
[1720035528122,0.01027569,60017.0,60012.0,0.1641288]
[1720035528547,0.01027569,60017.0,60015.0,0.002]
[1720035528744,0.01027569,60017.0,60012.0,0.1641288]
[1720035528996,0.08015582,60018.0,60012.0,0.1641288]
[1720035528997,0.01027546,60016.0,60012.0,0.1641288]
[1720035529200,0.0001,60013.0,60012.0,0.1631288]
[1720035529408,0.2564,60013.0,60012.0,0.00283]
[1720035529669,1.39026526,60013.0,60012.0,0.00283]
[1720035529882,2.9101775,60013.0,60012.0,0.00283]
[1720035530100,2.83598002,60013.0,60012.0,0.00283]
[1720035530300,2.639623,60007.0,60006.0,0.00093]
[1720035530500,0.333394,59989.0,59980.0,0.492823]
[1720035530703,0.3219,59993.0,59980.0,0.4058988]
[1720035530704,0.333415,59986.0,59980.0,0.4058988]
[1720035530916,0.166715,59983.0,59980.0,0.01456236]
[1720035531115,0.333417,59985.0,59980.0,0.01456236]
[1720035531116,0.166711,59984.0,59980.0,0.01456236]
[1720035531255,0.0769,59990.0,59980.0,0.1602988]
[1720035531459,0.166701,59988.0,59980.0,0.1602988]
[1720035531689,0.166697,59989.0,59980.0,0.3270188]
[1720035532056,0.1667,59988.0,59980.0,0.3270188]
[1720035532240,0.333391,59990.0,59980.0,0.3290188]
[1720035532444,0.166697,59989.0,59980.0,0.3270188]
[1720035533306,0.166697,59989.0,59980.0,0.3290188]
[1720035533493,0.166706,59986.0,59980.0,0.1622988]
[1720035533692,0.166706,59986.0,59980.0,0.1602988]
[1720035534100,0.166706,59986.0,59980.0,0.1612988]
[1720035534481,0.166702,59988.0,59980.0,0.1612988]
[1720035534687,0.333395,59989.0,59980.0,0.1612988]
[1720035534688,0.166703,59987.0,59980.0,0.1612988]
[1720035534886,0.166699,59989.0,59980.0,0.1602988]
[1720035535120,0.167799,59989.0,59980.0,0.1602988]
[1720035535465,0.167799,59989.0,59979.0,0.166723]
[1720035535466,0.166799,59989.0,59978.0,0.333451]
[1720035535667,0.166799,59989.0,59979.0,0.166723]
[1720035535817,0.166799,59989.0,59980.0,0.001]
[1720035536001,0.166799,59989.0,59981.0,0.166719]
[1720035536282,0.0002,59989.0,59982.0,0.0599]
[1720035536492,0.0002,59989.0,59984.0,0.0599]
[1720035536714,0.0002,59989.0,59988.0,0.8934]
[1720035536924,0.0002,59989.0,59988.0,1.0766988]
[1720035537141,0.0002,59989.0,59988.0,1.8151988]
[1720035537368,0.0002,59989.0,59988.0,2.1485988]
[1720035537565,0.0002,59989.0,59988.0,2.1820088]
[1720035538157,0.0002,59989.0,59988.0,2.4820088]
[1720035538569,0.0002,59989.0,59988.0,2.4960088]
[1720035538750,0.0002,59989.0,59988.0,2.4820088]
[1720035539318,0.0002,59989.0,59988.0,2.4960088]
[1720035539537,0.0002,59989.0,59988.0,1.8626088]
[1720035539762,0.0002,59989.0,59988.0,1.6841088]
[1720035540141,0.0002,59989.0,59988.0,0.59341]
[1720035540364,0.0002,59989.0,59988.0,0.014]
[1720035540569,0.0002,59989.0,59988.0,0.04277552]
[1720035540919,0.0002,59989.0,59988.0,0.028]
[1720035541098,0.166897,59989.0,59988.0,0.014]
[1720035541302,0.500291,59989.0,59988.0,0.014]
[1720035541530,1.056391,59989.0,59988.0,0.028]
[1720035541732,0.166704,59987.0,59980.0,0.0001]
[1720035541934,0.1667,59988.0,59980.0,0.166822]
[1720035542852,0.5563,59989.0,59988.0,0.001]
[1720035542853,0.722997,59989.0,59988.0,0.001]
[1720035543300,0.722997,59989.0,59981.0,0.166719]
[1720035544085,0.08015582,59988.0,59980.0,0.0021]
[1720035544305,0.166706,59986.0,59980.0,0.0041]
[1720035544501,0.41355982,59988.0,59980.0,0.0021]
[1720035544502,0.166703,59987.0,59980.0,0.0021]
[1720035545006,0.166703,59987.0,59981.0,0.001]
[1720035545361,0.166703,59987.0,59980.0,0.0021]
[1720035545566,0.166706,59986.0,59980.0,0.0051]
[1720035545966,0.166706,59986.0,59980.0,0.0001]
[1720035546369,0.166709,59985.0,59980.0,0.0001]
[1720035546594,0.166709,59985.0,59980.0,0.0051]
[1720035546789,0.166706,59986.0,59980.0,0.0051]
[1720035547305,0.166706,59986.0,59980.0,0.0001]
[1720035548207,0.166706,59986.0,59980.0,0.0051]
[1720035548560,0.166706,59986.0,59980.0,0.0111]
[1720035549234,0.166706,59986.0,59980.0,0.0051]
[1720035549458,0.166706,59986.0,59980.0,0.0101]
[1720035552508,0.0002,59989.0,59980.0,0.0101]
[1720035552920,0.0002,59989.0,59980.0,0.176821]
[1720035552921,0.166701,59988.0,59980.0,0.176821]
[1720035553120,0.166702,59987.0,59980.0,0.176821]
[1720035553292,0.166701,59988.0,59980.0,0.176821]
[1720035553523,0.166701,59988.0,59980.0,0.171821]
[1720035553852,0.166701,59988.0,59980.0,0.166821]
[1720035554555,0.166898,59989.0,59981.0,0.166719]
[1720035555917,0.166898,59989.0,59981.0,0.167719]
[1720035556116,0.1667,59988.0,59981.0,0.167719]
[1720035556324,0.166897,59989.0,59981.0,0.168719]
[1720035556515,0.0002,59989.0,59982.0,0.166715]
[1720035557453,0.333595,59989.0,59981.0,0.3252]
[1720035557628,0.166703,59987.0,59981.0,0.3242]
[1720035558433,0.166703,59987.0,59981.0,0.3252]
[1720035558629,0.166703,59987.0,59981.0,0.3282]
[1720035558871,0.166703,59987.0,59981.0,0.3262]
[1720035559080,0.08015582,59985.0,59981.0,0.006]
[1720035559282,0.08015582,59985.0,59981.0,0.003]
[1720035559283,0.827549,59982.0,59981.0,0.003]
[1720035559456,0.3274,59982.0,59981.0,0.003]
[1720035559609,0.3274,59982.0,59981.0,0.007]
[1720035559844,1.23503782,59982.0,59981.0,0.007]
[1720035560043,1.64376795,59982.0,59981.0,0.003]
[1720035560247,1.64376795,59982.0,59980.0,0.00093]
[1720035560248,0.833595,59981.0,59980.0,0.00093]
[1720035560451,0.84889213,59981.0,59980.0,0.00093]
[1720035562045,0.85106907,59981.0,59980.0,0.00093]
[1720035562438,0.833595,59981.0,59980.0,0.00093]
[1720035562644,0.835595,59981.0,59980.0,0.00093]
[1720035564973,0.168719,59981.0,59980.0,0.00093]
[1720035565222,0.502157,59981.0,59980.0,0.00093]
[1720035565983,0.500157,59981.0,59980.0,0.00093]
[1720035566201,0.501157,59981.0,59980.0,0.00093]
[1720035567583,0.500157,59981.0,59980.0,0.00093]
[1720035567786,0.501157,59981.0,59980.0,0.00093]